fUSD/lending_fUSD_20240222
["ID","MTS","AMOUNT","RATE_DAILY","PERIOD"]
[314909516,1708635047775,-565.64529012,0.00032876,2]
[314909517,1708635047785,-500.0,0.00032876,2]
[314909518,1708635047797,-540.07,0.00032876,2]
[314909519,1708635047806,-500.0,0.00032876,2]
[314909520,1708635047816,-500.0,0.00032876,2]
[314909521,1708635047825,-500.0,0.00032876,2]
[314909522,1708635047836,-500.0,0.00032876,2]
[314909523,1708635047941,-500.0,0.00032876,2]
[314909524,1708635047951,-500.0,0.00032876,2]
[314909525,1708635047960,-535.22507736,0.00032876,2]
[314909526,1708635047970,-500.0,0.00032876,2]
[314909527,1708635047979,-500.0,0.00032876,2]
[314909528,1708635047988,-500.0,0.00032876,2]
[314909529,1708635047997,-500.0,0.00032876,2]
[314909530,1708635048006,-500.0,0.00032876,2]
[314909531,1708635048015,-500.0,0.00032876,2]
[314909532,1708635048025,-500.0,0.00032876,2]
[314909533,1708635048034,-715.77,0.00032876,2]
[314909534,1708635048043,-500.0,0.00032876,2]
[314909535,1708635048052,-500.0,0.00032876,2]
[314909536,1708635048060,-500.0,0.00032876,2]
[314909537,1708635048070,-500.0,0.00032876,2]
[314909538,1708635048079,-500.0,0.00032876,2]
[314909539,1708635048088,-500.0,0.00032876,2]
[314909540,1708635048097,-500.0,0.00032876,2]
[314909541,1708635048106,-500.0,0.00032876,2]
[314909542,1708635048115,-500.0,0.00032876,2]
[314909543,1708635048124,-500.0,0.00032876,2]
[314909544,1708635048134,-500.0,0.00032876,2]
[314909545,1708635048145,-500.0,0.00032876,2]
[314909546,1708635048160,-500.0,0.00032876,2]
[314909547,1708635048170,-500.0,0.00032876,2]
[314909548,1708635048179,-500.0,0.00032876,2]
[314909549,1708635048188,-427.47044236,0.00032876,2]
[314909550,1708635048197,-500.0,0.00032876,2]
[314909551,1708635048206,-500.0,0.00032876,2]
[314909552,1708635048215,-500.0,0.00032876,2]
[314909553,1708635048224,-500.0,0.00032876,2]
[314909554,1708635048233,-156.22,0.00032876,2]
[314909555,1708635048242,-500.0,0.00032876,2]
[314909556,1708635048252,-500.0,0.00032876,2]
[314909557,1708635048261,-256.41248205,0.00032876,2]
[314909558,1708635048270,-500.0,0.00032876,2]
[314909559,1708635048279,-500.0,0.00032876,2]
[314909560,1708635048288,-500.0,0.00032876,2]
[314909561,1708635048297,-500.0,0.00032876,2]
[314909562,1708635048306,-500.0,0.00032876,2]
[314909563,1708635048315,-500.0,0.00032876,2]
[314909564,1708635048325,-500.0,0.00032876,2]
[314909565,1708635048334,-500.0,0.00032876,2]
[314909566,1708635048344,-500.0,0.00032876,2]
[314909567,1708635048354,-500.0,0.00032876,2]
[314909568,1708635048363,-500.0,0.00032876,2]
[314909569,1708635048372,-500.0,0.00032876,2]
[314909570,1708635048382,-500.0,0.00032876,2]
[314909571,1708635048391,-503.74,0.00032876,2]
[314909572,1708635048400,-503.31647674,0.00032876,2]
[314909573,1708635048409,-500.0,0.00032876,2]
[314909574,1708635048418,-519.14,0.00032876,2]
[314909575,1708635048428,-500.0,0.00032876,2]
[314909576,1708635048437,-247.85030234,0.00032876,2]
[314909577,1708635048446,-500.0,0.00032876,2]
[314909578,1708635048455,-500.0,0.00032876,2]
[314909579,1708635048465,-500.0,0.00032876,2]
[314909580,1708635048474,-500.0,0.00032876,2]
[314909581,1708635048484,-500.0,0.00032876,2]
[314909582,1708635048493,-500.0,0.00032876,2]
[314909583,1708635048503,-565.44214804,0.00032876,2]
[314909584,1708635048512,-500.0,0.00032876,2]
[314909585,1708635048521,-500.0,0.00032876,2]
[314909586,1708635048530,-500.0,0.00032876,2]
[314909587,1708635048539,-542.16,0.00032876,2]
[314909588,1708635048549,-500.0,0.00032876,2]
[314909589,1708635048557,-500.0,0.00032876,2]
[314909590,1708635048567,-500.0,0.00032876,2]
[314909591,1708635048576,-500.0,0.00032876,2]
[314909592,1708635048585,-1000.0,0.00032876,7]
[314909593,1708635048594,-858.44,0.00032876,2]
[314909594,1708635048604,-1079.66,0.00032876,2]
[314909595,1708635048613,-510.19147109,0.00032876,2]
[314909596,1708635048622,-500.0,0.00032876,2]
[314909597,1708635048632,-500.0,0.00032876,14]
[314909598,1708635048642,-500.0,0.00032876,2]
[314909599,1708635048652,-506.25582875,0.00032876,2]
[314909600,1708635048661,-500.0,0.00032876,2]
[314909601,1708635048671,-500.0,0.00032876,2]
[314909602,1708635048680,-500.0,0.00032876,2]
[314909603,1708635048690,-500.0,0.00032876,2]
[314909604,1708635048699,-500.0,0.00032876,2]
[314909605,1708635048709,-500.0,0.00032876,2]
[314909606,1708635048718,-500.0,0.00032876,2]
[314909607,1708635048728,-500.0,0.00032876,2]
[314909608,1708635048738,-621.97,0.00032876,2]
[314909609,1708635048749,-500.0,0.00032876,2]
[314909610,1708635048759,-500.0,0.00032876,2]
[314909611,1708635048772,-500.0,0.00032876,2]
[314909612,1708635048782,-500.0,0.00032876,2]
[314909613,1708635048792,-500.0,0.00032876,2]
[314909614,1708635048801,-500.0,0.00032876,2]
[314909615,1708635048811,-1300.31,0.00032876,2]
[314909616,1708635048821,-500.0,0.00032876,2]
[314909617,1708635048831,-500.0,0.00032876,2]
[314909618,1708635048842,-500.0,0.00032876,2]
[314909619,1708635048852,-627.87,0.00032876,2]
[314909620,1708635048862,-500.0,0.00032876,2]
[314909621,1708635048871,-500.0,0.00032876,2]
[314909622,1708635048882,-500.0,0.00032876,2]
[314909623,1708635048891,-500.0,0.00032876,2]
[314909624,1708635048901,-500.0,0.00032876,2]
[314909625,1708635048910,-500.0,0.00032876,2]
[314909626,1708635048920,-682.75,0.00032876,2]
[314909627,1708635048929,-532.56280253,0.00032876,2]
[314909628,1708635048939,-500.0,0.00032876,2]
[314909629,1708635048948,-500.0,0.00032876,2]
[314909630,1708635048957,-500.0,0.00032876,2]
[314909631,1708635048967,-500.0,0.00032876,2]
[314909632,1708635048976,-500.0,0.00032876,2]
[314909633,1708635048986,-500.0,0.00032876,2]
[314909634,1708635048995,-503.10622702,0.00032876,2]
[314909635,1708635049004,-2002.64,0.00032876,2]
[314909636,1708635049014,-500.0,0.00032876,2]
[314909637,1708635049023,-2266.41,0.00032876,2]
[314909638,1708635049033,-500.0,0.00032876,2]
[314909639,1708635049043,-500.0,0.00032876,2]
[314909640,1708635049052,-505.08041081,0.00032876,2]
[314909641,1708635049061,-500.0,0.00032876,2]
[314909642,1708635049070,-500.0,0.00032876,2]
[314909643,1708635049079,-500.0,0.00032876,2]
[314909644,1708635049089,-500.0,0.00032876,2]
[314909645,1708635049099,-500.0,0.00032876,2]
[314909646,1708635049108,-500.0,0.00032876,2]
[314909647,1708635049117,-500.0,0.00032876,2]
[314909648,1708635049126,-982.14,0.00032876,2]
[314909649,1708635049136,-947.29,0.00032876,2]
[314909650,1708635049146,-500.0,0.00032876,2]
[314909651,1708635049156,-500.0,0.00032876,2]
[314909652,1708635049165,-500.0,0.00032876,2]
[314909653,1708635049174,-1981.38,0.00032876,2]
[314909654,1708635049183,-500.0,0.00032876,2]
[314909655,1708635049192,-500.0,0.00032876,2]
[314909656,1708635049201,-500.0,0.00032876,2]
[314909657,1708635049210,-500.0,0.00032876,2]
[314909658,1708635049219,-500.0,0.00032876,2]
[314909659,1708635049228,-500.0,0.00032876,2]
[314909660,1708635049238,-500.0,0.00032876,2]
[314909661,1708635049247,-502.65579115,0.00032876,2]
[314909662,1708635049256,-500.0,0.00032876,2]
[314909663,1708635049265,-500.0,0.00032876,2]
[314909664,1708635049275,-500.0,0.00032876,2]
[314909665,1708635049284,-500.0,0.00032876,2]
[314909666,1708635049293,-504.01149215,0.00032876,2]
[314909667,1708635049302,-4201.14,0.00032876,2]
[314909668,1708635049311,-500.0,0.00032876,2]
[314909669,1708635049320,-500.0,0.00032876,2]
[314909670,1708635049329,-500.0,0.00032876,2]
[314909671,1708635049338,-500.0,0.00032876,2]
[314909672,1708635049349,-500.0,0.00032876,2]
[314909673,1708635049358,-6347.11,0.00032876,2]
[314909674,1708635049368,-2321.6,0.00032876,2]
[314909675,1708635049379,-500.0,0.00032876,2]
[314909676,1708635049389,-500.0,0.00032876,2]
[314909677,1708635049398,-500.0,0.00032876,2]
[314909678,1708635049408,-507.25340825,0.00032876,2]
[314909679,1708635049418,-500.0,0.00032876,2]
[314909680,1708635049428,-711.96,0.00032876,2]
[314909681,1708635049438,-500.0,0.00032876,2]
[314909682,1708635049448,-513.47728458,0.00032876,2]
[314909683,1708635049457,-500.0,0.00032876,2]
[314909684,1708635049466,-510.45,0.00032876,2]
[314909685,1708635049475,-500.0,0.00032876,2]
[314909686,1708635049484,-611.83,0.00032876,2]
[314909687,1708635049494,-155.36137988,0.00032876,2]
[314909688,1708635049503,-500.0,0.00032876,2]
[314909689,1708635049512,-500.0,0.00032876,2]
[314909690,1708635049522,-500.0,0.00032876,2]
[314909691,1708635049531,-500.0,0.00032876,2]
[314909692,1708635049540,-500.0,0.00032876,2]
[314909693,1708635049549,-500.0,0.00032876,2]
[314909694,1708635049559,-500.0,0.00032876,2]
[314909695,1708635049568,-500.0,0.00032876,2]
[314909696,1708635049577,-500.0,0.00032876,2]
[314909697,1708635049586,-500.0,0.00032876,2]
[314909698,1708635049596,-500.0,0.00032876,2]
[314909699,1708635049606,-224.95145445,0.00032876,2]
[314909700,1708635049616,-4462.31,0.00032876,2]
[314909701,1708635049625,-3872.09,0.00032876,2]
[314909702,1708635049636,-500.0,0.00032876,2]
[314909703,1708635049645,-500.0,0.00032876,2]
[314909704,1708635049655,-500.0,0.00032876,2]
[314909705,1708635049665,-500.0,0.00032876,2]
[314909706,1708635049674,-500.0,0.00032876,2]
[314909707,1708635049684,-500.0,0.00032876,2]
[314909708,1708635049693,-500.0,0.00032876,2]
[314909709,1708635049702,-500.0,0.00032876,2]
[314909710,1708635049712,-500.0,0.00032876,2]
[314909711,1708635049721,-500.0,0.00032876,2]
[314909712,1708635049731,-500.0,0.00032876,2]
[314909713,1708635049740,-2138.94,0.00032876,2]
[314909714,1708635049755,-500.0,0.00032876,2]
[314909715,1708635049765,-500.0,0.00032876,2]
[314909716,1708635049775,-508.67207957,0.00032876,2]
[314909717,1708635049784,-500.0,0.00032876,2]
[314909718,1708635049795,-500.0,0.00032876,2]
[314909719,1708635049804,-500.0,0.00032876,2]
[314909720,1708635049813,-500.0,0.00032876,2]
[314909721,1708635049824,-500.0,0.00032876,2]
[314909722,1708635049833,-500.0,0.00032876,2]
[314909723,1708635049843,-677.28,0.00032876,2]
[314909724,1708635049852,-500.0,0.00032876,2]
[314909725,1708635049861,-500.0,0.00032876,2]
[314909726,1708635049871,-500.0,0.00032876,2]
[314909727,1708635049882,-503.90927117,0.00032876,2]
[314909728,1708635049891,-506.30573806,0.00032876,2]
[314909729,1708635049900,-500.0,0.00032876,2]
[314909730,1708635049910,-500.0,0.00032876,2]
[314909731,1708635049920,-981.71,0.00032876,2]
[314909732,1708635049930,-500.0,0.00032876,2]
[314909733,1708635049939,-500.0,0.00032876,2]
[314909734,1708635049949,-500.0,0.00032876,2]
[314909735,1708635049958,-4200.89,0.00032876,2]
[314909736,1708635049968,-511.16,0.00032876,2]
[314909737,1708635049978,-500.0,0.00032876,2]
[314909738,1708635049987,-500.0,0.00032876,2]
[314909739,1708635049997,-500.0,0.00032876,2]
[314909740,1708635050007,-500.0,0.00032876,2]
[314909741,1708635050016,-540.93728636,0.00032876,2]
[314909742,1708635050026,-500.0,0.00032876,2]
[314909743,1708635050035,-3628.37,0.00032876,2]
[314909744,1708635050045,-540.9,0.00032876,2]
[314909745,1708635050054,-514.31406766,0.00032876,2]
[314909746,1708635050063,-500.0,0.00032876,2]
[314909747,1708635050073,-500.0,0.00032876,2]
[314909748,1708635050082,-500.0,0.00032876,2]
[314909749,1708635050091,-500.0,0.00032876,2]
[314909750,1708635050100,-500.0,0.00032876,2]
[314909751,1708635050109,-500.0,0.00032876,2]
[314909752,1708635050118,-541.66,0.00032876,2]
[314909753,1708635050129,-500.0,0.00032876,2]
[314909754,1708635050139,-500.0,0.00032876,2]
[314909755,1708635050148,-767.41,0.00032876,2]
[314909756,1708635050157,-15076.9,0.00032876,2]
[314909757,1708635050167,-500.0,0.00032876,2]
[314909758,1708635050176,-500.0,0.00032876,2]
[314909759,1708635050185,-639.34,0.00032876,2]
[314909760,1708635050194,-500.0,0.00032876,2]
[314909761,1708635050203,-4376.47,0.00032876,2]
[314909762,1708635050213,-574.73,0.00032876,2]
[314909763,1708635050222,-500.0,0.00032876,2]
[314909764,1708635050232,-862.76,0.00032876,2]
[314909765,1708635050241,-500.0,0.00032876,2]
[314909766,1708635050250,-500.0,0.00032876,2]
[314909767,1708635050259,-500.0,0.00032876,2]
[314909768,1708635050268,-500.0,0.00032876,2]
[314909769,1708635050277,-500.0,0.00032876,2]
[314909770,1708635050286,-500.0,0.00032876,2]
[314909771,1708635050295,-500.0,0.00032876,2]
[314909772,1708635050304,-500.0,0.00032876,2]
[314909773,1708635050314,-500.0,0.00032876,2]
[314909774,1708635050323,-500.0,0.00032876,2]
[314909775,1708635050332,-500.0,0.00032876,2]
[314909776,1708635050342,-1671.37,0.00032876,2]
[314909777,1708635050351,-500.0,0.00032876,2]
[314909778,1708635050360,-500.0,0.00032876,2]
[314909779,1708635050370,-509.68813807,0.00032876,2]
[314909780,1708635050379,-500.0,0.00032876,2]
[314909781,1708635050389,-500.0,0.00032876,2]
[314909782,1708635050398,-1593.07,0.00032876,2]
[314909783,1708635050408,-500.0,0.00032876,2]
[314909784,1708635050418,-500.0,0.00032876,2]
[314909785,1708635050427,-500.0,0.00032876,2]
[314909786,1708635050436,-500.0,0.00032876,2]
[314909787,1708635050446,-2257.01,0.00032876,2]
[314909788,1708635050455,-500.0,0.00032876,2]
[314909789,1708635050465,-500.0,0.00032876,2]
[314909790,1708635050474,-500.0,0.00032876,2]
[314909791,1708635050483,-534.71801843,0.00032876,2]
[314909792,1708635050492,-500.0,0.00032876,2]
[314909793,1708635050502,-672.93,0.00032876,2]
[314909794,1708635050512,-500.0,0.00032876,2]
[314909795,1708635050521,-513.20343893,0.00032876,2]
[314909796,1708635050530,-5164.55,0.00032876,2]
[314909797,1708635050539,-500.0,0.00032876,2]
[314909798,1708635050549,-500.0,0.00032876,2]
[314909799,1708635050558,-298.77633665,0.00032876,2]
[314909800,1708635050568,-1138.05,0.00032876,2]
[314909801,1708635050578,-500.0,0.00032876,2]
[314909802,1708635050588,-9527.74980193,0.00032876,3]
[314909803,1708635050598,-500.0,0.00032876,2]
[314909804,1708635050607,-500.0,0.00032876,2]
[314909805,1708635050616,-502.89295626,0.00032876,2]
[314909806,1708635050626,-500.0,0.00032876,2]
[314909807,1708635050637,-768.2,0.00032876,2]
[314909808,1708635050647,-500.0,0.00032876,2]
[314909809,1708635050656,-1297.81,0.00032876,2]
[314909810,1708635050666,-500.0,0.00032876,2]
[314909811,1708635050676,-500.0,0.00032876,2]
[314909812,1708635050686,-522.42,0.00032876,2]
[314909813,1708635050695,-500.0,0.00032876,2]
[314909814,1708635050704,-500.0,0.00032876,2]
[314909815,1708635050714,-2954.83,0.00032876,2]
[314909816,1708635050723,-505.08992469,0.00032876,2]
[314909817,1708635050733,-1050.5,0.00032876,2]
[314909818,1708635050743,-500.0,0.00032876,2]
[314909819,1708635050753,-500.0,0.00032876,2]
[314909820,1708635050766,-505.10433456,0.00032876,2]
[314909821,1708635050776,-500.0,0.00032876,2]
[314909822,1708635050786,-500.0,0.00032876,2]
[314909823,1708635050796,-500.0,0.00032876,2]
[314909824,1708635050806,-500.0,0.00032876,2]
[314909825,1708635050816,-804.12,0.00032876,2]
[314909826,1708635050826,-500.0,0.00032876,2]
[314909827,1708635050835,-500.0,0.00032876,2]
[314909828,1708635050847,-1505.96,0.00032876,2]
[314909829,1708635050857,-2103.85,0.00032876,2]
[314909830,1708635050866,-1239.84,0.00032876,2]
[314909831,1708635050875,-1535.88,0.00032876,2]
[314909832,1708635050887,-500.0,0.00032876,2]
[314909833,1708635050896,-500.0,0.00032876,2]
[314909834,1708635050906,-500.0,0.00032876,2]
[314909835,1708635050915,-500.0,0.00032876,2]
[314909836,1708635050924,-2700.5,0.00032876,2]
[314909837,1708635050935,-500.0,0.00032876,2]
[314909838,1708635050944,-500.0,0.00032876,2]
[314909839,1708635050953,-500.0,0.00032876,2]
[314909840,1708635050962,-500.0,0.00032876,2]
[314909841,1708635050972,-500.0,0.00032876,2]
[314909842,1708635050981,-500.0,0.00032876,2]
[314909843,1708635050991,-500.0,0.00032876,2]
[314909844,1708635051001,-659.64,0.00032876,2]
[314909845,1708635051010,-778.29,0.00032876,2]
[314909846,1708635051019,-500.0,0.00032876,2]
[314909847,1708635051029,-500.0,0.00032876,2]
[314909848,1708635051038,-12873.14,0.00032876,2]
[314909849,1708635051048,-799.18,0.00032876,2]
[314909850,1708635051058,-4792.19,0.00032876,2]
[314909851,1708635051067,-500.0,0.00032876,2]
[314909852,1708635051076,-500.0,0.00032876,2]
[314909853,1708635051086,-591.94,0.00032876,2]
[314909854,1708635051095,-503.44409828,0.00032876,2]
[314909855,1708635051104,-6786.26,0.00032876,2]
[314909856,1708635051114,-500.0,0.00032876,2]
[314909857,1708635051123,-576.65,0.00032876,2]
[314909858,1708635051134,-572.05209813,0.00032876,2]
[314909859,1708635051143,-1365.5,0.00032876,2]
[314909860,1708635051152,-5441.22,0.00032876,2]
[314909861,1708635051162,-500.0,0.00032876,2]
[314909862,1708635051172,-500.0,0.00032876,2]
[314909863,1708635051181,-500.0,0.00032876,2]
[314909864,1708635051190,-500.0,0.00032876,2]
[314909865,1708635051199,-500.0,0.00032876,2]
[314909866,1708635051208,-673.19,0.00032876,2]
[314909867,1708635051218,-8303.93,0.00032876,2]
[314909868,1708635051227,-500.0,0.00032876,2]
[314909869,1708635051237,-500.0,0.00032876,2]
[314909870,1708635051246,-187.3596724,0.00032876,2]
[314909871,1708635051255,-649.73,0.00032876,2]
[314909872,1708635051265,-516.06,0.00032876,2]
[314909873,1708635051274,-789.8,0.00032876,2]
[314909874,1708635051284,-817.7,0.00032876,2]
[314909875,1708635051293,-1061.83,0.00032876,2]
[314909876,1708635051303,-500.0,0.00032876,2]
[314909877,1708635051312,-500.0,0.00032876,2]
[314909878,1708635051322,-500.0,0.00032876,2]
[314909879,1708635051332,-850.77,0.00032876,2]
[314909880,1708635051341,-500.0,0.00032876,2]
[314909881,1708635051351,-500.0,0.00032876,2]
[314909882,1708635051361,-500.0,0.00032876,2]
[314909883,1708635051370,-500.0,0.00032876,2]
[314909884,1708635051382,-939.84,0.00032876,2]
[314909885,1708635051391,-500.0,0.00032876,2]
[314909886,1708635051400,-500.0,0.00032876,2]
[314909887,1708635051410,-1214.17,0.00032876,2]
[314909888,1708635051419,-500.0,0.00032876,2]
[314909889,1708635051429,-500.0,0.00032876,2]
[314909890,1708635051439,-639.48945697,0.00032876,2]
[314909891,1708635051449,-1088.9,0.00032876,2]
[314909892,1708635051459,-500.0,0.00032876,2]
[314909893,1708635051469,-500.0,0.00032876,2]
[314909894,1708635051478,-3312.71,0.00032876,2]
[314909895,1708635051488,-500.0,0.00032876,2]
[314909896,1708635051498,-517.9098902,0.00032876,2]
[314909897,1708635051508,-659.74,0.00032876,2]
[314909898,1708635051519,-500.0,0.00032876,2]
[314909899,1708635051528,-586.63,0.00032876,2]
[314909900,1708635051546,-500.0,0.00032876,2]
[314909901,1708635051565,-500.0,0.00032876,2]
[314909902,1708635051575,-1706.54,0.00032876,2]
[314909903,1708635051585,-5312.69,0.00032876,2]
[314909904,1708635051594,-500.0,0.00032876,2]
[314909905,1708635051603,-500.0,0.00032876,2]
[314909906,1708635051613,-500.0,0.00032876,2]
[314909907,1708635051625,-500.0,0.00032876,2]
[314909908,1708635051635,-500.0,0.00032876,2]
[314909909,1708635051645,-635.56971346,0.00032876,2]
[314909910,1708635051655,-1201.84,0.00032876,2]
[314909911,1708635051665,-500.0,0.00032876,2]
[314909912,1708635051675,-500.0,0.00032876,2]
[314909913,1708635051684,-2400.54,0.00032876,2]
[314909914,1708635051693,-500.0,0.00032876,2]
[314909915,1708635051702,-500.0,0.00032876,2]
[314909916,1708635051712,-4219.99,0.00032876,2]
[314909917,1708635051721,-692.82,0.00032876,2]
[314909918,1708635051730,-542.69,0.00032876,2]
[314909919,1708635051741,-500.0,0.00032876,2]
[314909920,1708635051756,-598.8846773,0.00032876,2]
[314909921,1708635051766,-500.0,0.00032876,2]
[314909922,1708635051776,-500.0,0.00032876,2]
[314909923,1708635051785,-1000.0,0.00032876,7]
[314909924,1708635051797,-1116.05,0.00032876,2]
[314909925,1708635051806,-500.0,0.00032876,2]
[314909926,1708635051816,-1265.81,0.00032876,2]
[314909927,1708635051826,-596.2,0.00032876,2]
[314909928,1708635051836,-500.0,0.00032876,2]
[314909929,1708635051846,-500.0,0.00032876,2]
[314909930,1708635051856,-500.0,0.00032876,2]
[314909931,1708635051866,-234.93498041,0.00032876,2]
[314909932,1708635051876,-1110.29,0.00032876,2]
[314909933,1708635051887,-500.0,0.00032876,2]
[314909934,1708635051898,-652.05,0.00032876,2]
[314909935,1708635051908,-1000.0,0.00032876,2]
[314909936,1708635051918,-542.52,0.00032876,2]
[314909937,1708635051928,-500.0,0.00032876,2]
[314909938,1708635051938,-500.0,0.00032876,2]
[314909939,1708635051948,-500.0,0.00032876,2]
[314909940,1708635051958,-518.21,0.00032876,2]
[314909941,1708635051968,-500.0,0.00032876,2]
[314909942,1708635051978,-500.0,0.00032876,2]
[314909943,1708635051987,-783.92,0.00032876,2]
[314909944,1708635051997,-500.0,0.00032876,2]
[314909945,1708635052007,-5079.26,0.00032876,2]
[314909946,1708635052017,-612.94,0.00032876,2]
[314909947,1708635052027,-627.01,0.00032876,2]
[314909948,1708635052178,-500.0,0.00032876,2]
[314909949,1708635052189,-500.0,0.00032876,2]
[314909950,1708635052199,-500.0,0.00032876,2]
[314909951,1708635052210,-500.0,0.00032876,2]
[314909952,1708635052220,-1600.52,0.00032876,2]
[314909953,1708635052230,-563.23,0.00032876,2]
[314909954,1708635052240,-513.92,0.00032876,2]
[314909955,1708635052250,-500.0,0.00032876,2]
[314909956,1708635052259,-3754.85,0.00032876,2]
[314909957,1708635052269,-500.0,0.00032876,2]
[314909958,1708635052281,-500.0,0.00032876,2]
[314909959,1708635052291,-500.0,0.00032876,2]
[314909960,1708635052301,-500.0,0.00032876,2]
[314909961,1708635052311,-500.0,0.00032876,2]
[314909962,1708635052321,-500.0,0.00032876,2]
[314909963,1708635052330,-564.21,0.00032876,2]
[314909964,1708635052340,-500.0,0.00032876,2]
[314909965,1708635052350,-500.0,0.00032876,2]
[314909966,1708635052360,-1073.29,0.00032876,2]
[314909967,1708635052370,-500.0,0.00032876,2]
[314909968,1708635052386,-500.0,0.00032876,2]
[314909969,1708635052396,-528.5,0.00032876,2]
[314909970,1708635052405,-1564.63,0.00032876,2]
[314909971,1708635052414,-1186.11,0.00032876,2]
[314909972,1708635052423,-500.0,0.00032876,2]
[314909973,1708635052433,-500.0,0.00032876,2]
[314909974,1708635052443,-500.0,0.00032876,2]
[314909975,1708635052452,-500.0,0.00032876,2]
[314909976,1708635052462,-660.46,0.00032876,2]
[314909977,1708635052471,-711.07,0.00032876,2]
[314909978,1708635052481,-786.48,0.00032876,2]
[314909979,1708635052491,-606.92,0.00032876,2]
[314909980,1708635052501,-500.0,0.00032876,2]
[314909981,1708635052510,-228.71959673,0.00032876,2]
[314909982,1708635052520,-500.0,0.00032876,2]
[314909983,1708635052529,-556.48,0.00032876,2]
[314909984,1708635052538,-648.51,0.00032876,2]
[314909985,1708635052548,-1225.73,0.00032876,2]
[314909986,1708635052557,-951.04,0.00032876,2]
[314909987,1708635052567,-500.0,0.00032876,2]
[314909988,1708635052577,-9061.28,0.00032876,2]
[314909989,1708635052587,-500.0,0.00032876,2]
[314909990,1708635052597,-500.0,0.00032876,2]
[314909991,1708635052607,-500.0,0.00032876,2]
[314909992,1708635052616,-500.0,0.00032876,2]
[314909993,1708635052626,-500.0,0.00032876,2]
[314909994,1708635052639,-707.0,0.00032876,2]
[314909995,1708635052649,-500.0,0.00032876,2]
[314909996,1708635052659,-3571.58,0.00032876,2]
[314909997,1708635052669,-500.0,0.00032876,2]
[314909998,1708635052679,-500.0,0.00032876,2]
[314909999,1708635052689,-1462.09,0.00032876,2]
[314910000,1708635052699,-500.0,0.00032876,2]
[314910001,1708635052708,-586.07,0.00032876,2]
[314910002,1708635052718,-500.0,0.00032876,2]
[314910003,1708635052727,-313.02413292,0.00032876,2]
[314910004,1708635052738,-769.27,0.00032876,2]
[314910005,1708635052749,-500.0,0.00032876,2]
[314910006,1708635052761,-153.07968329,0.00032876,2]
[314910007,1708635052771,-2191.4,0.00032876,2]
[314910008,1708635052781,-500.0,0.00032876,2]
[314910009,1708635052790,-500.0,0.00032876,2]
[314910010,1708635052801,-500.0,0.00032876,2]
[314910011,1708635052811,-500.0,0.00032876,2]
[314910012,1708635052820,-500.0,0.00032876,2]
[314910013,1708635052830,-500.0,0.00032876,2]
[314910014,1708635052839,-500.0,0.00032876,2]
[314910015,1708635052849,-705.27,0.00032876,2]